Workbook

Sheet Home
B2: Evoenergy revised proposal gas network | customer impacts model
B3: =HYPERLINK("#'"&RIGHT(CELL("filename",A1),LEN(CELL("filename",A1))-FIND("]",CELL("filename",A1)))&"'!A1",RIGHT(CELL("filename",A1),LEN(CELL("filename",A1))-FIND("]",CELL("filename",A1)))) -> Home
B5: Contents
B6: =HYPERLINK("#'"&RIGHT(CELL("filename",Home!A1),LEN(CELL("filename",Home!A1))-FIND("]",CELL("filename",Home!A1)))&"'!A1",RIGHT(CELL("filename",Home!A1),LEN(CELL("filename",Home!A1))-FIND("]",CELL("filename",Home!A1)))) -> Home
B7: =HYPERLINK("#'"&RIGHT(CELL("filename",Methodology!A1),LEN(CELL("filename",Methodology!A1))-FIND("]",CELL("filename",Methodology!A1)))&"'!A1",RIGHT(CELL("filename",Methodology!A1),LEN(CELL("filename",Methodology!A1))-FIND("]",CELL("filename",Methodology!A1)))) -> Methodology | C7: Explains the calculations and assumptions applied in this model.
B8: =HYPERLINK("#'"&RIGHT(CELL("filename",'Report|Table'!A1),LEN(CELL("filename",'Report|Table'!A1))-FIND("]",CELL("filename",'Report|Table'!A1)))&"'!A1",RIGHT(CELL("filename",'Report|Table'!A1),LEN(CELL("filename",'Report|Table'!A1))-FIND("]",CELL("filename",'Report|Table'!A1)))) -> Report|Table | C8: Shows the table of price and bill impacts in the revised proposal document
B9: =HYPERLINK("#'"&RIGHT(CELL("filename",'Calc|RIN Indicative bill impact'!A1),LEN(CELL("filename",'Calc|RIN Indicative bill impact'!A1))-FIND("]",CELL("filename",'Calc|RIN Indicative bill impact'!A1)))&"'!A1",RIGHT(CELL("filename",'Calc|RIN Indicative bill impact'!A1),LEN(CELL("filename",'Calc|RIN Indicative bill impact'!A1))-FIND("]",CELL("filename",'Calc|RIN Indicative bill impact'!A1)))) -> Calc|RIN Indicative bill impact | C9: This sheet (sourced from the RIN) calculates the network bill by applying an assumed proportion to a total retail bill and the annual nominal price change from the PTRM.
B10: =HYPERLINK("#'"&RIGHT(CELL("filename",'Calc|Network Bill Impacts'!A1),LEN(CELL("filename",'Calc|Network Bill Impacts'!A1))-FIND("]",CELL("filename",'Calc|Network Bill Impacts'!A1)))&"'!A1",RIGHT(CELL("filename",'Calc|Network Bill Impacts'!A1),LEN(CELL("filename",'Calc|Network Bill Impacts'!A1))-FIND("]",CELL("filename",'Calc|Network Bill Impacts'!A1)))) -> Calc|Network Bill Impacts | C10: This sheet calculates network bills for the typical customer using the network tariffs from the PTRM. This is more accurate than the RIN method.
B11: =HYPERLINK("#'"&RIGHT(CELL("filename",'Calc|Retail Bill Impacts'!A1),LEN(CELL("filename",'Calc|Retail Bill Impacts'!A1))-FIND("]",CELL("filename",'Calc|Retail Bill Impacts'!A1)))&"'!A1",RIGHT(CELL("filename",'Calc|Retail Bill Impacts'!A1),LEN(CELL("filename",'Calc|Retail Bill Impacts'!A1))-FIND("]",CELL("filename",'Calc|Retail Bill Impacts'!A1)))) -> Calc|Retail Bill Impacts | C11: This sheet calculates the network and retail bills using the 2020-21 tariffs from the PTRM and Energy Made Easy website. The network tariffs continue to be applied for the network bill until 2025-26. The wholesale component of the retail bill is grown in the AEMO wholesale price growth forecast. The residual (not network or whoelsale) is constant in real terms.
B12: =HYPERLINK("#'"&RIGHT(CELL("filename",'Data|Typical customer'!A1),LEN(CELL("filename",'Data|Typical customer'!A1))-FIND("]",CELL("filename",'Data|Typical customer'!A1)))&"'!A1",RIGHT(CELL("filename",'Data|Typical customer'!A1),LEN(CELL("filename",'Data|Typical customer'!A1))-FIND("]",CELL("filename",'Data|Typical customer'!A1)))) -> Data|Typical customer | C12: This sheet contains the assumptions for the typical customers.
B13: =HYPERLINK("#'"&RIGHT(CELL("filename",'Data|Wholesale forecast'!A1),LEN(CELL("filename",'Data|Wholesale forecast'!A1))-FIND("]",CELL("filename",'Data|Wholesale forecast'!A1)))&"'!A1",RIGHT(CELL("filename",'Data|Wholesale forecast'!A1),LEN(CELL("filename",'Data|Wholesale forecast'!A1))-FIND("]",CELL("filename",'Data|Wholesale forecast'!A1)))) -> Data|Wholesale forecast | C13: This sheet contains the AEMO wholesale gas price forecast used to escalate the whole sale companent of the retail bills.
B14: =HYPERLINK("#'"&RIGHT(CELL("filename",'Data|Retail tariffs'!A1),LEN(CELL("filename",'Data|Retail tariffs'!A1))-FIND("]",CELL("filename",'Data|Retail tariffs'!A1)))&"'!A1",RIGHT(CELL("filename",'Data|Retail tariffs'!A1),LEN(CELL("filename",'Data|Retail tariffs'!A1))-FIND("]",CELL("filename",'Data|Retail tariffs'!A1)))) -> Data|Retail tariffs | C14: This sheet contains the retail tariffs from the Energy Made Easy website in summary form to be used in the Retail Bill calculations.
B15: =HYPERLINK("#'"&RIGHT(CELL("filename",'Data|Network tariffs'!A1),LEN(CELL("filename",'Data|Network tariffs'!A1))-FIND("]",CELL("filename",'Data|Network tariffs'!A1)))&"'!A1",RIGHT(CELL("filename",'Data|Network tariffs'!A1),LEN(CELL("filename",'Data|Network tariffs'!A1))-FIND("]",CELL("filename",'Data|Network tariffs'!A1)))) -> Data|Network tariffs | C15: This sheet contains the block structure and tariffs from the PTRM.
B16: =HYPERLINK("#'"&RIGHT(CELL("filename",'Data|PTRM Revenues'!A1),LEN(CELL("filename",'Data|PTRM Revenues'!A1))-FIND("]",CELL("filename",'Data|PTRM Revenues'!A1)))&"'!A1",RIGHT(CELL("filename",'Data|PTRM Revenues'!A1),LEN(CELL("filename",'Data|PTRM Revenues'!A1))-FIND("]",CELL("filename",'Data|PTRM Revenues'!A1)))) -> Data|PTRM Revenues | C16: This sheet contains the PTRM CPI and x-factors.
B18: Colour legend
B19: Label
B20: Calculation or link
B21: Data inputs
B23: Sheet prefixes
B24: "Calc|" Sheet contains mostly calculations
B25: "Data|" Sheet contains the data used in the calculations
B26: "XXXXX" Sheet contains cells used to setup the model, these should not be changed unless you know how they affect the model

Sheet Methodology
B2: =HYPERLINK("#'"&RIGHT(CELL("filename",Home!A1),LEN(CELL("filename",Home!A1))-FIND("]",CELL("filename",Home!A1)))&"'!A1","Click to go to """&RIGHT(CELL("filename",Home!A1),LEN(CELL("filename",Home!A1))-FIND("]",CELL("filename",Home!A1)))&"""") -> Click to go to "Home"
B3: Evoenergy Revised Proposal gas distribution network revenue customer impacts model
B4: =HYPERLINK("#'"&RIGHT(CELL("filename",A3),LEN(CELL("filename",A3))-FIND("]",CELL("filename",A3)))&"'!A1",RIGHT(CELL("filename",A3),LEN(CELL("filename",A3))-FIND("]",CELL("filename",A3)))) -> Methodology
B6: Purpose
B7: This spreadsheet caclulates the impact of the network prices from the PTRM on the network bill and retail bill for the "typical" resdiential and business customer. It also calculates the weighted average price change for network tariffs over the period, which is the equivalent to a negative x-factor.
B9: Methodology
B10: ="The assumptions for the typical customers are shown on the ""Data|Typical Customer"" sheet. The assumptions required are the typical annual consumption of "& ROUND('Data|Typical customer'!$D$8,0) &" GJ per annum for residential customers and "& ROUND('Data|Typical customer'!D14,0) &" GJ per annum for business customers. The other assumption is that the wholesale proportion of the customer retail bill is "& ROUND('Data|Typical customer'!$D$12,2)*100&"% for the typical residential customer and "& ROUND('Data|Typical customer'!$D$18,2)*100&"% for the typical business customer. The network bill and the retail bill amounts are calculated in this spreadsheet so the network proportion of the customer bill is calculated accordingly" -> The assumptions for the typical customers are shown on the "Data|Typical Customer" sheet. The assumptions required are the typical annual consumption of 28 GJ per annum for residential customers and 469 GJ per annum for business customers. The other assumption is that the wholesale proportion of the customer retail bill is 51% for the typical residential customer and 51% for the typical business customer. The network bill and the retail bill amounts are calculated in this spreadsheet so the network proportion of the customer bill is calculated accordingly
B11: The 2020-21 retail tariffs are taken from the Energy Made Easy website. The retail tariffs were chosen by entering the typical consumption into the EME website, which resulted in the following 4 plans for residential customers:
B12: - EnergyAustralia - "Total Plan Home"
B13: - Origin Energy - "Origin Go"
B14: - Red Energy - "Living Energy Saver"
B15: - ActewAGL - "Home Gas Plan - ACT"
B16: The following plans were used for business customers and were also chosen using the EME website:
B17: - EnergyAustralia - "Total Plan Business"
B18: - Origin Energy - "Business Flexi Usage"
B19: - Red Energy - "Red Taronga Saver"
B20: - ActewAGL - "ACT Business Gas - 15% off usage"
B21: The 2020-21 retail bill for the typical customers was calculated by assumption the annual consumption was based on equal consumption for each billing period and mulitplied by each retail tariff described above, minus the discounts stated on the Energy Made Easy website. The average total bill from the four retailers was chosen as the "typical" customer bill.
B22: The retail bill for 2020-21 was split into the network component, the wholesale component and the residual.
B23: The retail bill was forecast as the sume of the above three component for 2021-22 to 2025-26 as follows:
B24: 1. The wholesale component was caclulated using the rate of change from the AEMO wholesale price forecast.
B25: 2. The residual was held constant in real terms; and
B26: 3. The network bill was calculated using the forecast network tariffs and volumes from the PTRM.
B27: The AER RIN workbook is based on the AER's calculations but the inputs for the typical customer have been changed to be consistent with the typical network and retail bill as described above.

Sheet Report|Table
B2: =HYPERLINK("#'"&RIGHT(CELL("filename",Home!A1),LEN(CELL("filename",Home!A1))-FIND("]",CELL("filename",Home!A1)))&"'!A1","Click to go to """&RIGHT(CELL("filename",Home!A1),LEN(CELL("filename",Home!A1))-FIND("]",CELL("filename",Home!A1)))&"""") -> Click to go to "Home"
B3: =ModelName -> Evoenergy revised proposal gas network | customer impacts model
B4: =HYPERLINK("#'"&RIGHT(CELL("filename",A3),LEN(CELL("filename",A3))-FIND("]",CELL("filename",A3)))&"'!A1",RIGHT(CELL("filename",A3),LEN(CELL("filename",A3))-FIND("]",CELL("filename",A3)))) -> Report|Table
B6: $ nominal | C6: 2020/21 | D6: 2021/22 | E6: 2022/23 | F6: 2023/24 | G6: 2024/25 | H6: 2025/26
B7: Revised proposal
B8: Real weighted average price increase across all tariffs* (%) | D8: =-'Data|PTRM Revenues'!E9 -> 0.0005351644214 | E8: =-'Data|PTRM Revenues'!F9 -> 0 | F8: =-'Data|PTRM Revenues'!G9 -> 0 | G8: =-'Data|PTRM Revenues'!H9 -> 0 | H8: =-'Data|PTRM Revenues'!I9 -> 0
B9: Increase in the typical residential customer network bill ($) | D9: ='Calc|Network Bill Impacts'!D7-'Calc|Network Bill Impacts'!C7 -> 9.81 | E9: ='Calc|Network Bill Impacts'!E7-'Calc|Network Bill Impacts'!D7 -> 8.223845485 | F9: ='Calc|Network Bill Impacts'!F7-'Calc|Network Bill Impacts'!E7 -> 8.419104962 | G9: ='Calc|Network Bill Impacts'!G7-'Calc|Network Bill Impacts'!F7 -> 8.619000502 | H9: ='Calc|Network Bill Impacts'!H7-'Calc|Network Bill Impacts'!G7 -> 8.823642179
B10: Estimated Evoenergy network gas bill for the typical residential customer ($) | C10: ='Calc|Network Bill Impacts'!C7 -> 336.558 | D10: ='Calc|Network Bill Impacts'!D7 -> 346.368 | E10: ='Calc|Network Bill Impacts'!E7 -> 354.5918455 | F10: ='Calc|Network Bill Impacts'!F7 -> 363.0109504 | G10: ='Calc|Network Bill Impacts'!G7 -> 371.6299509 | H10: ='Calc|Network Bill Impacts'!H7 -> 380.4535931
B11: Estimated retail gas bill for the typical residential customer ($) | C11: ='Calc|Retail Bill Impacts'!C7 -> 1440.143206 | D11: ='Calc|Retail Bill Impacts'!D7 -> 1487.559644 | E11: ='Calc|Retail Bill Impacts'!E7 -> 1546.654119 | F11: ='Calc|Retail Bill Impacts'!F7 -> 1615.66912 | G11: ='Calc|Retail Bill Impacts'!G7 -> 1673.516609 | H11: ='Calc|Retail Bill Impacts'!H7 -> 1721.396604

Sheet Calc|RIN Indicative bill impact
B2: =HYPERLINK("#'"&RIGHT(CELL("filename",Home!A1),LEN(CELL("filename",Home!A1))-FIND("]",CELL("filename",Home!A1)))&"'!A1","Click to go to """&RIGHT(CELL("filename",Home!A1),LEN(CELL("filename",Home!A1))-FIND("]",CELL("filename",Home!A1)))&"""") -> Click to go to "Home"
B3: =ModelName -> Evoenergy revised proposal gas network | customer impacts model
B4: =HYPERLINK("#'"&RIGHT(CELL("filename",A3),LEN(CELL("filename",A3))-FIND("]",CELL("filename",A3)))&"'!A1",RIGHT(CELL("filename",A3),LEN(CELL("filename",A3))-FIND("]",CELL("filename",A3)))) -> Calc|RIN Indicative bill impact
B6: REGULATORY REPORTING STATEMENT
B7: Evoenergy Distribution
B8: 2021-22 to 2025-26
B10: 1 - TYPICAL GAS BILL
B12: A. ANNUAL USAGE PER CUSTOMER
D13: MJ
D14: 2020-21
B15: Residential customer | D15: ='Data|Typical customer'!D8*1000 -> 28000
B16: Small business customer | D16: ='Data|Typical customer'!D14*1000 -> 468800
B17: Source(s) of data: | C17: CIE Forecast for 2021-26 access arrangement period
B20: B. TYPICAL ANNUAL GAS BILL
C21: Tariff type | D21: ($ real, June 2021)
B22: Residential customer | C22: Home Gas Plan | D22: ='Data|Typical customer'!D10 -> 1440.143206
B23: Small business customer | C23: Business Gas Plan | D23: ='Data|Typical customer'!D16 -> 11870.40149
B24: Source(s) of data: | C24: ActewAGL standard contract natural gas prices for 2020/21 applied to volumes above.
B27: C. DISTRIBUTION COSTS AS A PROPORTION OF A TYPICAL CUSTOMER'S GAS BILL
D28: Proportion (%)
D29: 2020-21
B30: Residential customer | D30: ='Data|Typical customer'!D11 -> 0.2336975925
B31: Small business customer | D31: ='Data|Typical customer'!D17 -> 0.2563345143
B32: Source(s) of data: | C32: ActewAGL standard contract prices and Evoenergy approved tariff variation notice (VRI) both for 2020/21 using volumes above.
B35: 2 - INDICATIVE ANNUAL AVERAGE DISTRIBUTION PRICE IMPACT
D36: 2020-21 | E36: 2021-22 | F36: 2022-23 | G36: 2023-24 | H36: 2024-25 | I36: 2025-26 | J36: Annual Average
B37: Forecast inflation (per cent) | E37: ='Data|PTRM Revenues'!E8 -> 0.02374308679 | F37: ='Data|PTRM Revenues'!F8 -> 0.02374308679 | G37: ='Data|PTRM Revenues'!G8 -> 0.02374308679 | H37: ='Data|PTRM Revenues'!H8 -> 0.02374308679 | I37: ='Data|PTRM Revenues'!I8 -> 0.02374308679
B39: Forecast X factors (per cent) | E39: ='Data|PTRM Revenues'!E9 -> -0.0005351644214 | F39: ='Data|PTRM Revenues'!F9 -> 0 | G39: ='Data|PTRM Revenues'!G9 -> 0 | H39: ='Data|PTRM Revenues'!H9 -> 0 | I39: ='Data|PTRM Revenues'!I9 -> 0
B41: Annual price path (index, nominal) | D41: 1 | E41: =D41*(1+E37)*(1-E39) -> 1.024290958 | F41: =E41*(1+F37)*(1-F39) -> 1.048610787 | G41: =F41*(1+G37)*(1-G39) -> 1.073508044 | H41: =G41*(1+H37)*(1-H39) -> 1.098996438 | I41: =H41*(1+I37)*(1-I39) -> 1.125090006
B42: Annual price path (per cent, nominal) | E42: =E41/D41-1 -> 0.02429095767 | F42: =F41/E41-1 -> 0.02374308679 | G42: =G41/F41-1 -> 0.02374308679 | H42: =H41/G41-1 -> 0.02374308679 | I42: =I41/H41-1 -> 0.02374308679 | J42: =(I41/D41)^(1/5)-1 -> 0.02385263752
B44: Annual price path (index, real June 2021) | D44: 1 | E44: =D44*(1-E39) -> 1.000535164 | F44: =E44*(1-F39) -> 1.000535164 | G44: =F44*(1-G39) -> 1.000535164 | H44: =G44*(1-H39) -> 1.000535164 | I44: =H44*(1-I39) -> 1.000535164
B45: Annual price path (per cent, real June 2021) | E45: =E44/D44-1 -> 0.0005351644214 | F45: =F44/E44-1 -> 0 | G45: =G44/F44-1 -> 0 | H45: =H44/G44-1 -> 0 | I45: =I44/H44-1 -> 0 | J45: =(I44/D44)^(1/5)-1 -> 0.0001070099796
B47: 3 - DISTRIBUTION BILL COMPONENT
B48: Residential customer
D49: 2020-21 | E49: 2021-22 | F49: 2022-23 | G49: 2023-24 | H49: 2024-25 | I49: 2025-26 | J49: ="Total "&E49&" to "&I49&"" -> Total 2021-22 to 2025-26 | K49: Annual Average | L49: Average annual impact on total bill (%)
B50: Distribution charges bill component ($, nominal) | D50: =D22*$D$30 -> 336.558 | E50: =D50*(1+E$42) -> 344.7333161 | F50: =E50*(1+F$42) -> 352.9183492 | G50: =F50*(1+G$42) -> 361.2977202 | H50: =G50*(1+H$42) -> 369.8760433 | I50: =H50*(1+I$42) -> 378.6580423 | K50: =+AVERAGE(E50:I50) -> 361.4966942
B51: Annual change ($, nominal) | E51: =+E50-D50 -> 8.17531613 | F51: =+F50-E50 -> 8.185033044 | G51: =+G50-F50 -> 8.379370994 | H51: =+H50-G50 -> 8.578323127 | I51: =+I50-H50 -> 8.781998997 | J51: =+SUM(E51:I51) -> 42.10004229 | K51: =+AVERAGE(E51:I51) -> 8.420008458 | L51: =K51/D22 -> 0.005846646656
B52: Distribution charges bill component ($, real June 2021) | D52: =D22*$D$30 -> 336.558 | E52: =D52*(1+E$45) -> 336.7381139 | F52: =E52*(1+F$45) -> 336.7381139 | G52: =F52*(1+G$45) -> 336.7381139 | H52: =G52*(1+H$45) -> 336.7381139 | I52: =H52*(1+I$45) -> 336.7381139 | K52: =+AVERAGE(E52:I52) -> 336.7381139
B53: Annual change ($, real June 2021) | E53: =+E52-D52 -> 0.1801138673 | F53: =+F52-E52 -> 0 | G53: =+G52-F52 -> 0 | H53: =+H52-G52 -> 0 | I53: =+I52-H52 -> 0 | J53: =+SUM(E53:I53) -> 0.1801138673 | K53: =+AVERAGE(E53:I53) -> 0.03602277347 | L53: =K53/D22 -> 2.501332737e-05
B55: Small Business customer
D56: 2020-21 | E56: 2021-22 | F56: 2022-23 | G56: 2023-24 | H56: 2024-25 | I56: 2025-26 | J56: ="Total "&E56&" to "&I56&"" -> Total 2021-22 to 2025-26 | K56: Annual Average | L56: Average annual impact on total bill (%)
B57: Distribution charges bill component ($, nominal) | D57: =D23*$D$31 -> 3042.7936 | E57: =D57*(1+E$42) -> 3116.705971 | F57: =E57*(1+F$42) -> 3190.706191 | G57: =F57*(1+G$42) -> 3266.463405 | H57: =G57*(1+H$42) -> 3344.019329 | I57: =H57*(1+I$42) -> 3423.41667 | K57: =+AVERAGE(E57:I57) -> 3268.262313
B58: Annual change ($, nominal) | E58: =+E57-D57 -> 73.91237052 | F58: =+F57-E57 -> 74.00022035 | G58: =+G57-F57 -> 75.75721401 | H58: =+H57-G57 -> 77.55592412 | I58: =+I57-H57 -> 79.39734115 | J58: =+SUM(E58:I58) -> 380.6230702 | K58: =+AVERAGE(E58:I58) -> 76.12461403 | L58: =K58/D23 -> 0.006412977194
B59: Distribution charges bill component ($, real June 2021) | D59: =D23*$D$31 -> 3042.7936 | E59: =D59*(1+E$45) -> 3044.421995 | F59: =E59*(1+F$45) -> 3044.421995 | G59: =F59*(1+G$45) -> 3044.421995 | H59: =G59*(1+H$45) -> 3044.421995 | I59: =H59*(1+I$45) -> 3044.421995 | K59: =+AVERAGE(E59:I59) -> 3044.421995
B60: Annual change ($, real June 2021) | E60: =+E59-D59 -> 1.628394876 | F60: =+F59-E59 -> 0 | G60: =+G59-F59 -> 0 | H60: =+H59-G59 -> 0 | I60: =+I59-H59 -> 0 | J60: =+SUM(E60:I60) -> 1.628394876 | K60: =+AVERAGE(E60:I60) -> 0.3256789753 | L60: =K60/D23 -> 2.74362224e-05

Sheet Calc|Network Bill Impacts
B2: =HYPERLINK("#'"&RIGHT(CELL("filename",Home!A1),LEN(CELL("filename",Home!A1))-FIND("]",CELL("filename",Home!A1)))&"'!A1","Click to go to """&RIGHT(CELL("filename",Home!A1),LEN(CELL("filename",Home!A1))-FIND("]",CELL("filename",Home!A1)))&"""") -> Click to go to "Home"
B3: =ModelName -> Evoenergy revised proposal gas network | customer impacts model
B4: =HYPERLINK("#'"&RIGHT(CELL("filename",A3),LEN(CELL("filename",A3))-FIND("]",CELL("filename",A3)))&"'!A1",RIGHT(CELL("filename",A3),LEN(CELL("filename",A3))-FIND("]",CELL("filename",A3)))) -> Calc|Network Bill Impacts
B6: Typical customer bill | C6: FY21 | D6: FY22 | E6: FY23 | F6: FY24 | G6: FY25 | H6: FY26
B7: Residential | C7: =H21 -> 336.558 | D7: =H24 -> 346.368 | E7: =H27 -> 354.5918455 | F7: =H30 -> 363.0109504 | G7: =H33 -> 371.6299509 | H7: =H36 -> 380.4535931
B8: % change (nominal) | D8: =D7/C7-1 -> 0.02914802203 | E8: =E7/D7-1 -> 0.02374308679 | F8: =F7/E7-1 -> 0.02374308679 | G8: =G7/F7-1 -> 0.02374308679 | H8: =H7/G7-1 -> 0.02374308679
B9: % change (real) | D9: =(1+D8)/(1+'Data|PTRM Revenues'!E$8)-1 -> 0.00527958168 | E9: =(1+E8)/(1+'Data|PTRM Revenues'!F$8)-1 -> 0 | F9: =(1+F8)/(1+'Data|PTRM Revenues'!G$8)-1 -> 0 | G9: =(1+G8)/(1+'Data|PTRM Revenues'!H$8)-1 -> 0 | H9: =(1+H8)/(1+'Data|PTRM Revenues'!I$8)-1 -> 0
B10: Small business | C10: =$H$45 -> 3042.7936 | D10: =$H$48 -> 3118.1828 | E10: =$H$51 -> 3192.218085 | F10: =$H$54 -> 3268.011196 | G10: =$H$57 -> 3345.603869 | H10: =$H$60 -> 3425.038832
B11: % change (nominal) | D11: =D10/C10-1 -> 0.02477631082 | E11: =E10/D10-1 -> 0.02374308679 | F11: =F10/E10-1 -> 0.02374308679 | G11: =G10/F10-1 -> 0.02374308679 | H11: =H10/G10-1 -> 0.02374308679
B12: % change (real) | D12: =(1+D11)/(1+'Data|PTRM Revenues'!E$8)-1 -> 0.00100926106 | E12: =(1+E11)/(1+'Data|PTRM Revenues'!F$8)-1 -> 0 | F12: =(1+F11)/(1+'Data|PTRM Revenues'!G$8)-1 -> 0 | G12: =(1+G11)/(1+'Data|PTRM Revenues'!H$8)-1 -> 0 | H12: =(1+H11)/(1+'Data|PTRM Revenues'!I$8)-1 -> 0
B14: Typical residential customer consumption GJ p.a. | C14: ='Data|Typical customer'!D8 -> 28 | D14: =C14=H18 -> TRUE
B16: Item | C16: Fixed charge | D16: Block 1 | E16: Block 2 | F16: Block 3 | G16: Block 4 | H16: Total Bill
B17: Blocks | D17: ='Data|Network tariffs'!$E$8 -> 15 | E17: ='Data|Network tariffs'!$F$8 -> 176.4 | F17: ='Data|Network tariffs'!$G$8 -> 720 | G17: ='Data|Network tariffs'!$H$8 -> ∞
B18: Volume | C18: 1 | D18: =MIN($C$14,$D$17) -> 15 | E18: =MIN($C$14-$D$18,$E$17-$D$17) -> 13 | F18: =MIN($C$14-$E$18-$D$18,$F$17-$E$17) -> 0 | G18: =MAX($C$14-$F$18-$E$18-$D$18,0) -> 0 | H18: =SUM(D18:G18) -> 28
B19: FY21
B20: Tariffs | C20: ='Data|Network tariffs'!D10 -> 71.22 | D20: ='Data|Network tariffs'!E10 -> 12.016 | E20: ='Data|Network tariffs'!F10 -> 6.546 | F20: ='Data|Network tariffs'!G10 -> 5.933 | G20: ='Data|Network tariffs'!H10 -> 5.722
B21: Charges | C21: =C$18*C20 -> 71.22 | D21: =D$18*D20 -> 180.24 | E21: =E$18*E20 -> 85.098 | F21: =F$18*F20 -> 0 | G21: =G$18*G20 -> 0 | H21: =SUM(C21:G21) -> 336.558
B22: FY22
B23: Tariffs | C23: ='Data|Network tariffs'!D11 -> 73.66 | D23: ='Data|Network tariffs'!E11 -> 12.36 | E23: ='Data|Network tariffs'!F11 -> 6.716 | F23: ='Data|Network tariffs'!G11 -> 6.071 | G23: ='Data|Network tariffs'!H11 -> 5.862
B24: Charges | C24: =C$18*C23 -> 73.66 | D24: =D$18*D23 -> 185.4 | E24: =E$18*E23 -> 87.308 | F24: =F$18*F23 -> 0 | G24: =G$18*G23 -> 0 | H24: =SUM(C24:G24) -> 346.368
B25: FY23
B26: Tariffs | C26: ='Data|Network tariffs'!D12 -> 75.40891577 | D26: ='Data|Network tariffs'!E12 -> 12.65346455 | E26: ='Data|Network tariffs'!F12 -> 6.875458571 | F26: ='Data|Network tariffs'!G12 -> 6.21514428 | G26: ='Data|Network tariffs'!H12 -> 6.001181975
B27: Charges | C27: =C$18*C26 -> 75.40891577 | D27: =D$18*D26 -> 189.8019683 | E27: =E$18*E26 -> 89.38096142 | F27: =F$18*F26 -> 0 | G27: =G$18*G26 -> 0 | H27: =SUM(C27:G27) -> 354.5918455
B28: FY24
B29: Tariffs | C29: ='Data|Network tariffs'!D13 -> 77.1993562 | D29: ='Data|Network tariffs'!E13 -> 12.95389686 | E29: ='Data|Network tariffs'!F13 -> 7.03870318 | F29: ='Data|Network tariffs'!G13 -> 6.36271099 | G29: ='Data|Network tariffs'!H13 -> 6.143668559
B30: Charges | C30: =C$18*C29 -> 77.1993562 | D30: =D$18*D29 -> 194.3084529 | E30: =E$18*E29 -> 91.50314135 | F30: =F$18*F29 -> 0 | G30: =G$18*G29 -> 0 | H30: =SUM(C30:G30) -> 363.0109504
B31: FY25
B32: Tariffs | C32: ='Data|Network tariffs'!D14 -> 79.03230722 | D32: ='Data|Network tariffs'!E14 -> 13.26146236 | E32: ='Data|Network tariffs'!F14 -> 7.205823721 | F32: ='Data|Network tariffs'!G14 -> 6.513781389 | G32: ='Data|Network tariffs'!H14 -> 6.289538215
B33: Charges | C33: =C$18*C32 -> 79.03230722 | D33: =D$18*D32 -> 198.9219354 | E33: =E$18*E32 -> 93.67570837 | F33: =F$18*F32 -> 0 | G33: =G$18*G32 -> 0 | H33: =SUM(C33:G33) -> 371.6299509
B34: FY26
B35: Tariffs | C35: ='Data|Network tariffs'!D15 -> 80.90877815 | D35: ='Data|Network tariffs'!E15 -> 13.57633041 | E35: ='Data|Network tariffs'!F15 -> 7.376912219 | F35: ='Data|Network tariffs'!G15 -> 6.668438666 | G35: ='Data|Network tariffs'!H15 -> 6.438871267
B36: Charges | C36: =C$18*C35 -> 80.90877815 | D36: =D$18*D35 -> 203.6449561 | E36: =E$18*E35 -> 95.89985885 | F36: =F$18*F35 -> 0 | G36: =G$18*G35 -> 0 | H36: =SUM(C36:G36) -> 380.4535931
B38: Typical small business customer consumption GJ p.a. | C38: ='Data|Typical customer'!D14 -> 468.8 | D38: =C38=H42 -> TRUE
B40: Item | C40: Fixed charge | D40: Block 1 | E40: Block 2 | F40: Block 3 | G40: Block 4 | H40: Total Bill
B41: Blocks | D41: ='Data|Network tariffs'!$E$8 -> 15 | E41: ='Data|Network tariffs'!$F$8 -> 176.4 | F41: ='Data|Network tariffs'!$G$8 -> 720 | G41: ='Data|Network tariffs'!$H$8 -> ∞
B42: Volume | C42: 1 | D42: =MIN($C$38,$D$41) -> 15 | E42: =MIN($C$38-$D$42,$E$41-$D$41) -> 161.4 | F42: =MIN($C$38-$E$42-$D$42,$F$41-$E$41) -> 292.4 | G42: =MAX($C$38-$F$42-$E$42-$D$42,0) -> 2.842170943e-14 | H42: =SUM(D42:G42) -> 468.8
B43: FY21
B44: Tariffs | C44: ='Data|Network tariffs'!$D$21 -> 71.22 | D44: ='Data|Network tariffs'!$E$21 -> 12.016 | E44: ='Data|Network tariffs'!$F$21 -> 6.546 | F44: ='Data|Network tariffs'!$G$21 -> 5.933 | G44: ='Data|Network tariffs'!$H$21 -> 5.722
B45: Charges | C45: =C$42*C44 -> 71.22 | D45: =D$42*D44 -> 180.24 | E45: =E$42*E44 -> 1056.5244 | F45: =F$42*F44 -> 1734.8092 | G45: =G$42*G44 -> 1.626290214e-13 | H45: =SUM(C45:G45) -> 3042.7936
B46: FY22
B47: Tariffs | C47: ='Data|Network tariffs'!$D$22 -> 73.66 | D47: ='Data|Network tariffs'!$E$22 -> 12.36 | E47: ='Data|Network tariffs'!$F$22 -> 6.716 | F47: ='Data|Network tariffs'!$G$22 -> 6.071 | G47: ='Data|Network tariffs'!$H$22 -> 5.862
B48: Charges | C48: =C$42*C47 -> 73.66 | D48: =D$42*D47 -> 185.4 | E48: =E$42*E47 -> 1083.9624 | F48: =F$42*F47 -> 1775.1604 | G48: =G$42*G47 -> 1.666080607e-13 | H48: =SUM(C48:G48) -> 3118.1828
B49: FY23
B50: Tariffs | C50: ='Data|Network tariffs'!$D$23 -> 75.40891577 | D50: ='Data|Network tariffs'!$E$23 -> 12.65346455 | E50: ='Data|Network tariffs'!$F$23 -> 6.875458571 | F50: ='Data|Network tariffs'!$G$23 -> 6.21514428 | G50: ='Data|Network tariffs'!$H$23 -> 6.001181975
B51: Charges | C51: =C$42*C50 -> 75.40891577 | D51: =D$42*D50 -> 189.8019683 | E51: =E$42*E50 -> 1109.699013 | F51: =F$42*F50 -> 1817.308187 | G51: =G$42*G50 -> 1.705638503e-13 | H51: =SUM(C51:G51) -> 3192.218085
B52: FY24
B53: Tariffs | C53: ='Data|Network tariffs'!$D$24 -> 77.1993562 | D53: ='Data|Network tariffs'!$E$24 -> 12.95389686 | E53: ='Data|Network tariffs'!$F$24 -> 7.03870318 | F53: ='Data|Network tariffs'!$G$24 -> 6.36271099 | G53: ='Data|Network tariffs'!$H$24 -> 6.143668559
B54: Charges | C54: =C$42*C53 -> 77.1993562 | D54: =D$42*D53 -> 194.3084529 | E54: =E$42*E53 -> 1136.046693 | F54: =F$42*F53 -> 1860.456693 | G54: =G$42*G53 -> 1.746135626e-13 | H54: =SUM(C54:G54) -> 3268.011196
B55: FY25
B56: Tariffs | C56: ='Data|Network tariffs'!$D$25 -> 79.03230722 | D56: ='Data|Network tariffs'!$E$25 -> 13.26146236 | E56: ='Data|Network tariffs'!$F$25 -> 7.205823721 | F56: ='Data|Network tariffs'!$G$25 -> 6.513781389 | G56: ='Data|Network tariffs'!$H$25 -> 6.289538215
B57: Charges | C57: =C$42*C56 -> 79.03230722 | D57: =D$42*D56 -> 198.9219354 | E57: =E$42*E56 -> 1163.019949 | F57: =F$42*F56 -> 1904.629678 | G57: =G$42*G56 -> 1.787594276e-13 | H57: =SUM(C57:G57) -> 3345.603869
B58: FY26
B59: Tariffs | C59: ='Data|Network tariffs'!$D$26 -> 80.90877815 | D59: ='Data|Network tariffs'!$E$26 -> 13.57633041 | E59: ='Data|Network tariffs'!$F$26 -> 7.376912219 | F59: ='Data|Network tariffs'!$G$26 -> 6.668438666 | G59: ='Data|Network tariffs'!$H$26 -> 6.438871267
B60: Charges | C60: =C$42*C59 -> 80.90877815 | D60: =D$42*D59 -> 203.6449561 | E60: =E$42*E59 -> 1190.633632 | F60: =F$42*F59 -> 1949.851466 | G60: =G$42*G59 -> 1.830037282e-13 | H60: =SUM(C60:G60) -> 3425.038832

Sheet Calc|Retail Bill Impacts
B2: =HYPERLINK("#'"&RIGHT(CELL("filename",Home!A1),LEN(CELL("filename",Home!A1))-FIND("]",CELL("filename",Home!A1)))&"'!A1","Click to go to """&RIGHT(CELL("filename",Home!A1),LEN(CELL("filename",Home!A1))-FIND("]",CELL("filename",Home!A1)))&"""") -> Click to go to "Home"
B3: =ModelName -> Evoenergy revised proposal gas network | customer impacts model
B4: =HYPERLINK("#'"&RIGHT(CELL("filename",A3),LEN(CELL("filename",A3))-FIND("]",CELL("filename",A3)))&"'!A1",RIGHT(CELL("filename",A3),LEN(CELL("filename",A3))-FIND("]",CELL("filename",A3)))) -> Calc|Retail Bill Impacts
B6: Typical customer bill | C6: FY21 | D6: FY22 | E6: FY23 | F6: FY24 | G6: FY25 | H6: FY26
B7: Residential (minimum of retail offers) | C7: =AVERAGE(H31,H36,H41,H46) -> 1440.143206 | D7: =SUM(D8:D10) -> 1487.559644 | E7: =SUM(E8:E10) -> 1546.654119 | F7: =SUM(F8:F10) -> 1615.66912 | G7: =SUM(G8:G10) -> 1673.516609 | H7: =SUM(H8:H10) -> 1721.396604
B8: Assumed wholesale component | C8: =C7*'Data|Typical customer'!$D$12 -> 727.2931301 | D8: =C8*(1+'Data|Wholesale forecast'!G$12) -> 755.9652331 | E8: =D8*(1+'Data|Wholesale forecast'!H$12) -> 797.689398 | F8: =E8*(1+'Data|Wholesale forecast'!I$12) -> 848.9216652 | G8: =F8*(1+'Data|Wholesale forecast'!J$12) -> 888.5642022 | H8: =G8*(1+'Data|Wholesale forecast'!K$12) -> 917.8070047
B9: Evo distribution component | C9: ='Calc|Network Bill Impacts'!C7 -> 336.558 | D9: ='Calc|Network Bill Impacts'!D7 -> 346.368 | E9: ='Calc|Network Bill Impacts'!E7 -> 354.5918455 | F9: ='Calc|Network Bill Impacts'!F7 -> 363.0109504 | G9: ='Calc|Network Bill Impacts'!G7 -> 371.6299509 | H9: ='Calc|Network Bill Impacts'!H7 -> 380.4535931
B10: Residual (zero real growth assumed) | C10: =C7-C8-C9 -> 376.2920757 | D10: =C10*(1+'Data|PTRM Revenues'!E$8) -> 385.2264112 | E10: =D10*(1+'Data|PTRM Revenues'!F$8) -> 394.3728753 | F10: =E10*(1+'Data|PTRM Revenues'!G$8) -> 403.7365047 | G10: =F10*(1+'Data|PTRM Revenues'!H$8) -> 413.3224556 | H10: =G10*(1+'Data|PTRM Revenues'!I$8) -> 423.1360065
B11: % change (nominal) | D11: =D7/C7-1 -> 0.03292480791 | E11: =E7/D7-1 -> 0.03972578493 | F11: =F7/E7-1 -> 0.04462213023 | G11: =G7/F7-1 -> 0.0358040441 | H11: =H7/G7-1 -> 0.02861040959
B12: % change (real) | D12: =(1+D11)/(1+'Data|PTRM Revenues'!E$8)-1 -> 0.008968774721 | E12: =(1+E11)/(1+'Data|PTRM Revenues'!F$8)-1 -> 0.01561202058 | F12: =(1+F11)/(1+'Data|PTRM Revenues'!G$8)-1 -> 0.02039480775 | G12: =(1+G11)/(1+'Data|PTRM Revenues'!H$8)-1 -> 0.01178123444 | H12: =(1+H11)/(1+'Data|PTRM Revenues'!I$8)-1 -> 0.004754437768
B13: % contribution from Evo (nominal) | D13: =(D9-C9)/C7 -> 0.006811822574 | E13: =(E9-D9)/D7 -> 0.005528413947 | F13: =(F9-E9)/E7 -> 0.005443430991 | G13: =(G9-F9)/F7 -> 0.005334632193 | H13: =(H9-G9)/G7 -> 0.005272515452
B14: % contribution from Evo (real) | D14: =(1+D13)/(1+'Data|PTRM Revenues'!E$8)-1 -> -0.01653858711 | E14: =(1+E13)/(1+'Data|PTRM Revenues'!F$8)-1 -> -0.01779223037 | F14: =(1+F13)/(1+'Data|PTRM Revenues'!G$8)-1 -> -0.01787524237 | G14: =(1+G13)/(1+'Data|PTRM Revenues'!H$8)-1 -> -0.01798151786 | H14: =(1+H13)/(1+'Data|PTRM Revenues'!I$8)-1 -> -0.01804219396
B15: Small business (minimum of retail offers) | C15: =AVERAGE(H55,H60,H65,H70) -> 11870.40149 | D15: =SUM(D16:D18) -> 12249.38232 | E15: =SUM(E16:E18) -> 12736.18804 | F15: =SUM(F16:F18) -> 13304.75717 | G15: =SUM(G16:G18) -> 13781.27107 | H15: =SUM(H16:H18) -> 14175.62076
B16: Assumed wholesale component | C16: =C15*'Data|Typical customer'!$D$18 -> 5994.724288 | D16: =C16*(1+'Data|Wholesale forecast'!G$12) -> 6231.054518 | E16: =D16*(1+'Data|Wholesale forecast'!H$12) -> 6574.966559 | F16: =E16*(1+'Data|Wholesale forecast'!I$12) -> 6997.249272 | G16: =F16*(1+'Data|Wholesale forecast'!J$12) -> 7324.003465 | H16: =G16*(1+'Data|Wholesale forecast'!K$12) -> 7565.037693
B17: Evo distribution component | C17: ='Calc|Network Bill Impacts'!C10 -> 3042.7936 | D17: ='Calc|Network Bill Impacts'!D10 -> 3118.1828 | E17: ='Calc|Network Bill Impacts'!E10 -> 3192.218085 | F17: ='Calc|Network Bill Impacts'!F10 -> 3268.011196 | G17: ='Calc|Network Bill Impacts'!G10 -> 3345.603869 | H17: ='Calc|Network Bill Impacts'!H10 -> 3425.038832
B18: Residual (zero real growth assumed) | C18: =C15-C16-C17 -> 2832.883601 | D18: =C18*(1+'Data|PTRM Revenues'!E$8) -> 2900.145002 | E18: =D18*(1+'Data|PTRM Revenues'!F$8) -> 2969.003397 | F18: =E18*(1+'Data|PTRM Revenues'!G$8) -> 3039.496702 | G18: =F18*(1+'Data|PTRM Revenues'!H$8) -> 3111.663736 | H18: =G18*(1+'Data|PTRM Revenues'!I$8) -> 3185.544238
B19: % change (nominal) | D19: =D15/C15-1 -> 0.03192653853 | E19: =E15/D15-1 -> 0.03974124634 | F19: =F15/E15-1 -> 0.04464201751 | G19: =G15/F15-1 -> 0.03581530233 | H19: =H15/G15-1 -> 0.02861490001
B20: % change (real) | D20: =(1+D19)/(1+'Data|PTRM Revenues'!E$8)-1 -> 0.007993657637 | E20: =(1+E19)/(1+'Data|PTRM Revenues'!F$8)-1 -> 0.01562712341 | F20: =(1+F19)/(1+'Data|PTRM Revenues'!G$8)-1 -> 0.02041423379 | G20: =(1+G19)/(1+'Data|PTRM Revenues'!H$8)-1 -> 0.01179223156 | H20: =(1+H19)/(1+'Data|PTRM Revenues'!I$8)-1 -> 0.004758824044
B21: % contribution from Evo (nominal) | D21: =(D17-C17)/C15 -> 0.0063510236 | E21: =(E17-D17)/D15 -> 0.006044001478 | F21: =(F17-E17)/E15 -> 0.005951004398 | G21: =(G17-F17)/F15 -> 0.005831949615 | H21: =(H17-G17)/G15 -> 0.005763979435
B22: % contribution from Evo (real) | D22: =(1+D21)/(1+'Data|PTRM Revenues'!E$8)-1 -> -0.01698869903 | E22: =(1+E21)/(1+'Data|PTRM Revenues'!F$8)-1 -> -0.01728860057 | F22: =(1+F21)/(1+'Data|PTRM Revenues'!G$8)-1 -> -0.01737944082 | G22: =(1+G21)/(1+'Data|PTRM Revenues'!H$8)-1 -> -0.01749573443 | H22: =(1+H21)/(1+'Data|PTRM Revenues'!I$8)-1 -> -0.01756212822
B24: Typical residential customer consumption GJ p.a. | C24: ='Data|Typical customer'!D8 -> 28
B26: Item | C26: Fixed charge | D26: Block 1 | E26: Block 2 | F26: Block 3 | G26: Block 4 | H26: Total Bill
B27: FY21 - Energy Australia | I27: =$C$24=H29 -> TRUE
B28: Blocks | D28: ='Data|Retail tariffs'!$E$9 -> 3.75001 | E28: ='Data|Retail tariffs'!$F$9 -> 246.7500375 | F28: ='Data|Retail tariffs'!$G$9 -> 1000.499949 | G28: ='Data|Retail tariffs'!$H$9 -> ∞
B29: Volume | C29: 1 | D29: =MIN($C$24,$D28) -> 3.75001 | E29: =MIN($C$24-$D29,$E28-$D28) -> 24.24999 | F29: =MIN($C$24-$E29-$D29,$F28-$E28) -> 0 | G29: =MAX($C$24-$F29-$E29-$D29,0) -> 0 | H29: =SUM(D29:G29) -> 28
B30: Tariffs | C30: ='Data|Retail tariffs'!$D$10 -> 579.6 | D30: ='Data|Retail tariffs'!$E$10 -> 28.94181818 | E30: ='Data|Retail tariffs'!$F$10 -> 25.2 | F30: ='Data|Retail tariffs'!$G$10 -> 24.43636364 | G30: ='Data|Retail tariffs'!$H$10 -> 23.06181818
B31: Charges | C31: =C29*C30 -> 579.6 | D31: =D29*D30 -> 108.5321076 | E31: =E29*E30 -> 611.099748 | F31: =F29*F30 -> 0 | G31: =G29*G30 -> 0 | H31: =SUM(C31:G31) -> 1299.231856
B32: FY21 - Origin Energy | I32: =$C$24=H34 -> TRUE
B33: Blocks | D33: ='Data|Retail tariffs'!$E$12 -> 3.750000875 | E33: ='Data|Retail tariffs'!$F$12 -> 40.35000175 | F33: ='Data|Retail tariffs'!$G$12 -> 135.9000029 | G33: ='Data|Retail tariffs'!$H$12 -> ∞
B34: Volume | C34: 1 | D34: =MIN($C$24,$D33) -> 3.750000875 | E34: =MIN($C$24-$D34,$E33-$D33) -> 24.24999912 | F34: =MIN($C$24-$E34-$D34,$F33-$E33) -> 1.33226763e-15 | G34: =MAX($C$24-$F34-$E34-$D34,0) -> 1.33226763e-15 | H34: =SUM(D34:G34) -> 28
B35: Tariffs | C35: ='Data|Retail tariffs'!$D$13 -> 620.9090909 | D35: ='Data|Retail tariffs'!$E$13 -> 29.45454545 | E35: ='Data|Retail tariffs'!$F$13 -> 24.54545455 | F35: ='Data|Retail tariffs'!$G$13 -> 22.90909091 | G35: ='Data|Retail tariffs'!$H$13 -> 21.63636364
B36: Charges | C36: =C34*C35 -> 620.9090909 | D36: =D34*D35 -> 110.4545712 | E36: =E34*E35 -> 595.2272512 | F36: =F34*F35 -> 3.052104024e-14 | G36: =G34*G35 -> 2.882542689e-14 | H36: =SUM(C36:G36) -> 1326.590913
B37: FY21 - Red Energy | I37: =$C$24=H39 -> TRUE
B38: Blocks | D38: ='Data|Retail tariffs'!$E$15 -> 3.75001 | E38: ='Data|Retail tariffs'!$F$15 -> 40.35002 | F38: ='Data|Retail tariffs'!$G$15 -> 135.9000029 | G38: ='Data|Retail tariffs'!$H$15 -> ∞
B39: Volume | C39: 1 | D39: =MIN($C$24,$D38) -> 3.75001 | E39: =MIN($C$24-$D39,$E38-$D38) -> 24.24999 | F39: =MIN($C$24-$E39-$D39,$F38-$E38) -> 0 | G39: =MAX($C$24-$F39-$E39-$D39,0) -> 0 | H39: =SUM(D39:G39) -> 28
B40: Tariffs | C40: ='Data|Retail tariffs'!$D$16 -> 779.8181818 | D40: ='Data|Retail tariffs'!$E$16 -> 28.90909091 | E40: ='Data|Retail tariffs'!$F$16 -> 23.90909091 | F40: ='Data|Retail tariffs'!$G$16 -> 21.81818182 | G40: ='Data|Retail tariffs'!$H$16 -> 19.81818182
B41: Charges | C41: =C39*C40 -> 779.8181818 | D41: =D39*D40 -> 108.40938 | E41: =E39*E40 -> 579.7952155 | F41: =F39*F40 -> 0 | G41: =G39*G40 -> 0 | H41: =SUM(C41:G41) -> 1468.022777
B42: FY21 - ActewAGL | I42: =$C$24=H44 -> TRUE
B43: Blocks | D43: ='Data|Retail tariffs'!$E$18 -> 3.750000875 | E43: ='Data|Retail tariffs'!$F$18 -> 40.35000175 | F43: ='Data|Retail tariffs'!$G$18 -> 135.9000029 | G43: ='Data|Retail tariffs'!$H$18 -> ∞
B44: Volume | C44: 1 | D44: =MIN($C$24,$D43) -> 3.750000875 | E44: =MIN($C$24-$D44,$E43-$D43) -> 24.24999912 | F44: =MIN($C$24-$E44-$D44,$F43-$E43) -> 1.33226763e-15 | G44: =MAX($C$24-$F44-$E44-$D44,0) -> 1.33226763e-15 | H44: =SUM(D44:G44) -> 28
B45: Tariffs | C45: ='Data|Retail tariffs'!$D$19 -> 787.2727273 | D45: ='Data|Retail tariffs'!$E$19 -> 35.81818182 | E45: ='Data|Retail tariffs'!$F$19 -> 30.72727273 | F45: ='Data|Retail tariffs'!$G$19 -> 28.18181818 | G45: ='Data|Retail tariffs'!$H$19 -> 26.27272727
B46: Charges | C46: =C44*C45 -> 787.2727273 | D46: =D44*D45 -> 134.3182132 | E46: =E44*E45 -> 745.1363367 | F46: =F44*F45 -> 3.754572411e-14 | G46: =G44*G45 -> 3.500230409e-14 | H46: =SUM(C46:G46) -> 1666.727277
B48: Typical small business customer consumption GJ p.a. | C48: ='Data|Typical customer'!D14 -> 468.8
B50: Item | C50: Fixed charge | D50: Block 1 | E50: Block 2 | F50: Block 3 | G50: Block 4 | H50: Total Bill
B51: FY21 - Energy Australia | I51: =$C$48=H53 -> TRUE
B52: Blocks | D52: ='Data|Retail tariffs'!$E$24 -> 3.75001 | E52: ='Data|Retail tariffs'!$F$24 -> 246.7500375 | F52: ='Data|Retail tariffs'!$G$24 -> 1000.499949 | G52: ='Data|Retail tariffs'!$H$24 -> ∞
B53: Volume | C53: 1 | D53: =MAX(MIN($C$48,$D52),0) -> 3.75001 | E53: =MAX(MIN($C$48-$D53,$E52-$D52),0) -> 243.0000275 | F53: =MAX(MIN($C$48-$E53-$D53,$F52-$E52),0) -> 222.0499625 | G53: =MAX($C$48-$F53-$E53-$D53,0) -> 3.552713679e-15 | H53: =SUM(D53:G53) -> 468.8
B54: Tariffs | C54: ='Data|Retail tariffs'!$D$25 -> 1137.24 | D54: ='Data|Retail tariffs'!$E$25 -> 24.22636364 | E54: ='Data|Retail tariffs'!$F$25 -> 22.45909091 | F54: ='Data|Retail tariffs'!$G$25 -> 22.31181818 | G54: ='Data|Retail tariffs'!$H$25 -> 22.23818182
B55: Charges | C55: =C53*C54 -> 1137.24 | D55: =D53*D54 -> 90.8491059 | E55: =E53*E54 -> 5457.559709 | F55: =F53*F54 -> 4954.338391 | G55: =G53*G54 -> 7.900589274e-14 | H55: =SUM(C55:G55) -> 11639.98721
B56: FY21 - Origin Energy | I56: =$C$48=H58 -> TRUE
B57: Blocks | D57: ='Data|Retail tariffs'!$E$27 -> 7.50000175 | E57: ='Data|Retail tariffs'!$F$27 -> 285.0000026 | F57: ='Data|Retail tariffs'!$G$27 -> 0 | G57: ='Data|Retail tariffs'!$H$27 -> ∞
B58: Volume | C58: 1 | D58: =MAX(MIN($C$48,$D57),0) -> 7.50000175 | E58: =MAX(MIN($C$48-$D58,$E57-$D57),0) -> 277.5000009 | F58: =MAX(MIN($C$48-$E58-$D58,$F57-$E57),0) -> 0 | G58: =MAX($C$48-$F58-$E58-$D58,0) -> 183.7999974 | H58: =SUM(D58:G58) -> 468.8
B59: Tariffs | C59: ='Data|Retail tariffs'!$D$28 -> 1472.727273 | D59: ='Data|Retail tariffs'!$E$28 -> 23.87727273 | E59: ='Data|Retail tariffs'!$F$28 -> 21.55909091 | F59: ='Data|Retail tariffs'!$G$28 -> 0 | G59: ='Data|Retail tariffs'!$H$28 -> 21.09545455
B60: Charges | C60: =C58*C59 -> 1472.727273 | D60: =D58*D59 -> 179.0795872 | E60: =E58*E59 -> 5982.647746 | F60: =F58*F59 -> 0 | G60: =G58*G59 -> 3877.34449 | H60: =SUM(C60:G60) -> 11511.7991
B61: FY21 - Red Energy | I61: =$C$48=H63 -> TRUE
B62: Blocks | D62: ='Data|Retail tariffs'!$E$30 -> 7.50002 | E62: ='Data|Retail tariffs'!$F$30 -> 285.0000026 | F62: ='Data|Retail tariffs'!$G$30 -> 0 | G62: ='Data|Retail tariffs'!$H$30 -> ∞
B63: Volume | C63: 1 | D63: =MAX(MIN($C$48,$D62),0) -> 7.50002 | E63: =MAX(MIN($C$48-$D63,$E62-$D62),0) -> 277.4999826 | F63: =MAX(MIN($C$48-$E63-$D63,$F62-$E62),0) -> 0 | G63: =MAX($C$48-$F63-$E63-$D63,0) -> 183.7999974 | H63: =SUM(D63:G63) -> 468.8
B64: Tariffs | C64: ='Data|Retail tariffs'!$D$31 -> 999.8181818 | D64: ='Data|Retail tariffs'!$E$31 -> 28.90909091 | E64: ='Data|Retail tariffs'!$F$31 -> 23.90909091 | F64: ='Data|Retail tariffs'!$G$31 -> 0 | G64: ='Data|Retail tariffs'!$H$31 -> 21.81818182
B65: Charges | C65: =C63*C64 -> 999.8181818 | D65: =D63*D64 -> 216.81876 | E65: =E63*E64 -> 6634.772312 | F65: =F63*F64 -> 0 | G65: =G63*G64 -> 4010.181761 | H65: =SUM(C65:G65) -> 11861.59101
B66: FY21 - ActewAGL | I66: =$C$48=H68 -> TRUE
B67: Blocks | D67: ='Data|Retail tariffs'!$E$33 -> 7.50000175 | E67: ='Data|Retail tariffs'!$F$33 -> 285.0000026 | F67: ='Data|Retail tariffs'!$G$33 -> 0 | G67: ='Data|Retail tariffs'!$H$33 -> ∞
B68: Volume | C68: 1 | D68: =MAX(MIN($C$48,$D67),0) -> 7.50000175 | E68: =MAX(MIN($C$48-$D68,$E67-$D67),0) -> 277.5000009 | F68: =MAX(MIN($C$48-$E68-$D68,$F67-$E67),0) -> 0 | G68: =MAX($C$48-$F68-$E68-$D68,0) -> 183.7999974 | H68: =SUM(D68:G68) -> 468.8
B69: Tariffs | C69: ='Data|Retail tariffs'!$D$34 -> 1661.181818 | D69: ='Data|Retail tariffs'!$E$34 -> 25.5 | E69: ='Data|Retail tariffs'!$F$34 -> 23.25909091 | F69: ='Data|Retail tariffs'!$G$34 -> 0 | G69: ='Data|Retail tariffs'!$H$34 -> 22.64090909
B70: Charges | C70: =C68*C69 -> 1661.181818 | D70: =D68*D69 -> 191.2500446 | E70: =E68*E69 -> 6454.397748 | F70: =F68*F69 -> 0 | G70: =G68*G69 -> 4161.399031 | H70: =SUM(C70:G70) -> 12468.22864

Sheet Data|Typical customer
B2: =HYPERLINK("#'"&RIGHT(CELL("filename",Home!A1),LEN(CELL("filename",Home!A1))-FIND("]",CELL("filename",Home!A1)))&"'!A1","Click to go to """&RIGHT(CELL("filename",Home!A1),LEN(CELL("filename",Home!A1))-FIND("]",CELL("filename",Home!A1)))&"""") -> Click to go to "Home"
B3: =ModelName -> Evoenergy revised proposal gas network | customer impacts model
B4: =HYPERLINK("#'"&RIGHT(CELL("filename",A3),LEN(CELL("filename",A3))-FIND("]",CELL("filename",A3)))&"'!A1",RIGHT(CELL("filename",A3),LEN(CELL("filename",A3))-FIND("]",CELL("filename",A3)))) -> Data|Typical customer
B6: Customer type | C6: Units | D6: Value 2020-21
B7: Residential
B8: Typical usage | C8: GJ p.a. | D8: 28
B9: Typical usage | C9: MJ/day | D9: =D8*1000/365 -> 76.71232877
B10: Typical gas bill | C10: $/year | D10: ='Calc|Retail Bill Impacts'!$C$7 -> 1440.143206
B11: Distribution proportion | C11: % | D11: ='Calc|Network Bill Impacts'!C7/D10 -> 0.2336975925
B12: Wholesale component | C12: % | D12: 0.5050144508
B13: Small business
B14: Typical usage | C14: GJ p.a. | D14: 468.8
B15: Typical usage | C15: MJ/day | D15: =D14*1000/365 -> 1284.383562
B16: Typical gas bill | C16: $/year | D16: ='Calc|Retail Bill Impacts'!$C$15 -> 11870.40149
B17: Distribution proportion | C17: % | D17: ='Calc|Network Bill Impacts'!$C$10/D16 -> 0.2563345143
B18: Wholesale component | C18: % | D18: 0.5050144508

Sheet Data|Wholesale forecast
B2: =HYPERLINK("#'"&RIGHT(CELL("filename",Home!A1),LEN(CELL("filename",Home!A1))-FIND("]",CELL("filename",Home!A1)))&"'!A1","Click to go to """&RIGHT(CELL("filename",Home!A1),LEN(CELL("filename",Home!A1))-FIND("]",CELL("filename",Home!A1)))&"""") -> Click to go to "Home"
B3: =ModelName -> Evoenergy revised proposal gas network | customer impacts model
B4: =HYPERLINK("#'"&RIGHT(CELL("filename",A3),LEN(CELL("filename",A3))-FIND("]",CELL("filename",A3)))&"'!A1",RIGHT(CELL("filename",A3),LEN(CELL("filename",A3))-FIND("]",CELL("filename",A3)))) -> Data|Wholesale forecast
B6: Weighted Average Wholesale + Transmission + Storage
B7: Calendar year | C7: 2018 | D7: 2019 | E7: 2020 | F7: 2021 | G7: 2022 | H7: 2023 | I7: 2024 | J7: 2025 | K7: 2026
B8: Price | C8: 8.726 | D8: 8.481922857 | E8: 8.495590576 | F8: 8.755326631 | G8: 9.1756741 | H8: 9.744996524 | I8: 10.39086996 | J8: 10.68529157 | K8: 11.0844901
B10: Financial year | D10: 2018-19 | E10: 2019-20 | F10: 2020-21 | G10: 2021-22 | H10: 2022-23 | I10: 2023-24 | J10: 2024-25 | K10: 2025-26
B11: Price | D11: =AVERAGE(C8:D8) -> 8.603961429 | E11: =AVERAGE(D8:E8) -> 8.488756716 | F11: 8.625458603 | G11: 8.965500365 | H11: 9.460335312 | I11: 10.06793324 | J11: 10.53808076 | K11: 10.88489083
B12: Rate of change (nominal) | E12: =E11/D11-1 -> -0.01338972904 | F12: =F11/E11-1 -> 0.01610387616 | G12: 0.03942303565 | H12: 0.05519323254 | I12: 0.06422583435 | J12: 0.04669752073 | K12: 0.03291017401

Sheet Data|Retail tariffs
B2: =HYPERLINK("#'"&RIGHT(CELL("filename",Home!A1),LEN(CELL("filename",Home!A1))-FIND("]",CELL("filename",Home!A1)))&"'!A1","Click to go to """&RIGHT(CELL("filename",Home!A1),LEN(CELL("filename",Home!A1))-FIND("]",CELL("filename",Home!A1)))&"""") -> Click to go to "Home"
B3: =ModelName -> Evoenergy revised proposal gas network | customer impacts model
B4: =HYPERLINK("#'"&RIGHT(CELL("filename",A3),LEN(CELL("filename",A3))-FIND("]",CELL("filename",A3)))&"'!A1",RIGHT(CELL("filename",A3),LEN(CELL("filename",A3))-FIND("]",CELL("filename",A3)))) -> Data|Retail tariffs
J5: Discounts
B6: Residential tariffs for 2020/21 ($ nominal) | M6: Residential
B7: Item | C7: Units | D7: Fixed charge | E7: Block 1 | F7: Block 2 | G7: Block 3 | H7: Block 4 | J7: Fixed charges discount | K7: Usage charges discount | M7: Item | N7: Units | O7: Fixed charge | P7: Block 1 | Q7: Block 2 | R7: Block 3 | S7: Block 4
B8: EnergyAustralia | M8: EnergyAustralia
B9: Blocks | C9: GJ/year | E9: =P9 -> 3.75001 | F9: =Q9 -> 246.7500375 | G9: =R9 -> 1000.499949 | H9: =S9 -> ∞ | M9: Blocks | N9: GJ/year | P9: 3.75001 | Q9: 246.7500375 | R9: 1000.499949 | S9: ∞
B10: Annual (excl. GST) | C10: $/GJ/year | D10: =O10*(1-$J10) -> 579.6 | E10: =P10*(1-$K10) -> 28.94181818 | F10: =Q10*(1-$K10) -> 25.2 | G10: =R10*(1-$K10) -> 24.43636364 | H10: =S10*(1-$K10) -> 23.06181818 | J10: 0.16 | K10: 0.16 | M10: Annual (excl. GST) | N10: $/GJ/year | O10: 690 | P10: 34.45454545 | Q10: 30 | R10: 29.09090909 | S10: 27.45454545
B11: Origin Energy | M11: Origin Energy
B12: Blocks | C12: GJ/year | E12: =P12 -> 3.750000875 | F12: =Q12 -> 40.35000175 | G12: =R12 -> 135.9000029 | H12: =S12 -> ∞ | M12: Blocks | N12: GJ/year | P12: 3.750000875 | Q12: 40.35000175 | R12: 135.9000029 | S12: ∞
B13: Annual (excl. GST) | C13: $/GJ/year | D13: =O13*(1-$J13) -> 620.9090909 | E13: =P13*(1-$K13) -> 29.45454545 | F13: =Q13*(1-$K13) -> 24.54545455 | G13: =R13*(1-$K13) -> 22.90909091 | H13: =S13*(1-$K13) -> 21.63636364 | J13: 0 | K13: 0 | M13: Annual (excl. GST) | N13: $/GJ/year | O13: 620.9090909 | P13: 29.45454545 | Q13: 24.54545455 | R13: 22.90909091 | S13: 21.63636364
B14: Red Energy | M14: Red Energy
B15: Blocks | C15: GJ/year | E15: =P15 -> 3.75001 | F15: =Q15 -> 40.35002 | G15: =R15 -> 135.9000029 | H15: =S15 -> ∞ | M15: Blocks | N15: GJ/year | P15: 3.75001 | Q15: 40.35002 | R15: 135.9000029 | S15: ∞
B16: Annual (excl. GST) | C16: $/GJ/year | D16: =O16*(1-$J16) -> 779.8181818 | E16: =P16*(1-$K16) -> 28.90909091 | F16: =Q16*(1-$K16) -> 23.90909091 | G16: =R16*(1-$K16) -> 21.81818182 | H16: =S16*(1-$K16) -> 19.81818182 | J16: 0 | K16: 0 | M16: Annual (excl. GST) | N16: $/GJ/year | O16: 779.8181818 | P16: 28.90909091 | Q16: 23.90909091 | R16: 21.81818182 | S16: 19.81818182
B17: ActewAGL | M17: ActewAGL
B18: Blocks | C18: GJ/year | E18: =P18 -> 3.750000875 | F18: =Q18 -> 40.35000175 | G18: =R18 -> 135.9000029 | H18: =S18 -> ∞ | M18: Blocks | N18: GJ/year | P18: 3.750000875 | Q18: 40.35000175 | R18: 135.9000029 | S18: ∞
B19: Annual (excl. GST) | C19: $/GJ/year | D19: =O19*(1-$J19) -> 787.2727273 | E19: =P19*(1-$K19) -> 35.81818182 | F19: =Q19*(1-$K19) -> 30.72727273 | G19: =R19*(1-$K19) -> 28.18181818 | H19: =S19*(1-$K19) -> 26.27272727 | J19: 0 | K19: 0 | M19: Annual (excl. GST) | N19: $/GJ/year | O19: 787.2727273 | P19: 35.81818182 | Q19: 30.72727273 | R19: 28.18181818 | S19: 26.27272727
B21: Small business tariffs for 2020/21 ($ nominal) | M21: Small Business
B22: Item | C22: Units | D22: Fixed charge | E22: Block 1 | F22: Block 2 | G22: Block 3 | H22: Block 4 | M22: Item | N22: Units | O22: Fixed charge | P22: Block 1 | Q22: Block 2 | R22: Block 3 | S22: Block 4
B23: EnergyAustralia | M23: EnergyAustralia
B24: Blocks | C24: GJ/year | E24: =P24 -> 3.75001 | F24: =Q24 -> 246.7500375 | G24: =R24 -> 1000.499949 | H24: =S24 -> ∞ | M24: Blocks | N24: GJ/year | P24: 3.75001 | Q24: 246.7500375 | R24: 1000.499949 | S24: ∞
B25: Annual (excl. GST) | C25: $/GJ/year | D25: =O25*(1-$J25) -> 1137.24 | E25: =P25*(1-$K25) -> 24.22636364 | F25: =Q25*(1-$K25) -> 22.45909091 | G25: =R25*(1-$K25) -> 22.31181818 | H25: =S25*(1-$K25) -> 22.23818182 | J25: 0.19 | K25: 0.19 | M25: Annual (excl. GST) | N25: $/GJ/year | O25: 1404 | P25: 29.90909091 | Q25: 27.72727273 | R25: 27.54545455 | S25: 27.45454545
B26: Origin Energy | M26: Origin Energy
B27: Blocks | C27: GJ/year | E27: =P27 -> 7.50000175 | F27: =Q27 -> 285.0000026 | G27: =R27 -> 0 | H27: =S27 -> ∞ | M27: Blocks | N27: GJ/year | P27: 7.50000175 | Q27: 285.0000026 | R27: 0 | S27: ∞
B28: Annual (excl. GST) | C28: $/GJ/year | D28: =O28*(1-$J28) -> 1472.727273 | E28: =P28*(1-$K28) -> 23.87727273 | F28: =Q28*(1-$K28) -> 21.55909091 | G28: =R28*(1-$K28) -> 0 | H28: =S28*(1-$K28) -> 21.09545455 | J28: 0 | K28: 0.15 | M28: Annual (excl. GST) | N28: $/GJ/year | O28: 1472.727273 | P28: 28.09090909 | Q28: 25.36363636 | R28: 0 | S28: 24.81818182
B29: Red Energy | M29: Red Energy
B30: Blocks | C30: GJ/year | E30: =P30 -> 7.50002 | F30: =Q30 -> 285.0000026 | G30: =R30 -> 0 | H30: =S30 -> ∞ | M30: Blocks | N30: GJ/year | P30: 7.50002 | Q30: 285.0000026 | R30: 0 | S30: ∞
B31: Annual (excl. GST) | C31: $/GJ/year | D31: =O31*(1-$J31) -> 999.8181818 | E31: =P31*(1-$K31) -> 28.90909091 | F31: =Q31*(1-$K31) -> 23.90909091 | G31: =R31*(1-$K31) -> 0 | H31: =S31*(1-$K31) -> 21.81818182 | J31: 0 | K31: 0 | M31: Annual (excl. GST) | N31: $/GJ/year | O31: 999.8181818 | P31: 28.90909091 | Q31: 23.90909091 | R31: 0 | S31: 21.81818182
B32: ActewAGL | M32: ActewAGL
B33: Blocks | C33: GJ/year | E33: =P33 -> 7.50000175 | F33: =Q33 -> 285.0000026 | G33: =R33 -> 0 | H33: =S33 -> ∞ | M33: Blocks | N33: GJ/year | P33: 7.50000175 | Q33: 285.0000026 | R33: 0 | S33: ∞
B34: Annual (excl. GST) | C34: $/GJ/year | D34: =O34*(1-$J34) -> 1661.181818 | E34: =P34*(1-$K34) -> 25.5 | F34: =Q34*(1-$K34) -> 23.25909091 | G34: =R34*(1-$K34) -> 0 | H34: =S34*(1-$K34) -> 22.64090909 | J34: 0 | K34: 0.15 | M34: Annual (excl. GST) | N34: $/GJ/year | O34: 1661.181818 | P34: 30 | Q34: 27.36363636 | R34: 0 | S34: 26.63636364

Sheet Data|Network tariffs
B2: =HYPERLINK("#'"&RIGHT(CELL("filename",Home!A1),LEN(CELL("filename",Home!A1))-FIND("]",CELL("filename",Home!A1)))&"'!A1","Click to go to """&RIGHT(CELL("filename",Home!A1),LEN(CELL("filename",Home!A1))-FIND("]",CELL("filename",Home!A1)))&"""") -> Click to go to "Home"
B3: =ModelName -> Evoenergy revised proposal gas network | customer impacts model
B4: =HYPERLINK("#'"&RIGHT(CELL("filename",A3),LEN(CELL("filename",A3))-FIND("]",CELL("filename",A3)))&"'!A1",RIGHT(CELL("filename",A3),LEN(CELL("filename",A3))-FIND("]",CELL("filename",A3)))) -> Data|Network tariffs
B6: Residential tariffs ($ nominal)
B7: Item | C7: Units | D7: Fixed charge | E7: Block 1 | F7: Block 2 | G7: Block 3 | H7: Block 4
B8: Blocks | C8: GJ/year | E8: 15 | F8: 176.4 | G8: 720 | H8: ∞
B9: Annual (excl. GST)
B10: FY21 | C10: $/GJ/year | D10: 71.22 | E10: 12.016 | F10: 6.546 | G10: 5.933 | H10: 5.722
B11: FY22 | C11: $/GJ/year | D11: 73.66 | E11: 12.36 | F11: 6.716 | G11: 6.071 | H11: 5.862
B12: FY23 | C12: $/GJ/year | D12: 75.40891577 | E12: 12.65346455 | F12: 6.875458571 | G12: 6.21514428 | H12: 6.001181975
B13: FY24 | C13: $/GJ/year | D13: 77.1993562 | E13: 12.95389686 | F13: 7.03870318 | G13: 6.36271099 | H13: 6.143668559
B14: FY25 | C14: $/GJ/year | D14: 79.03230722 | E14: 13.26146236 | F14: 7.205823721 | G14: 6.513781389 | H14: 6.289538215
B15: FY26 | C15: $/GJ/year | D15: 80.90877815 | E15: 13.57633041 | F15: 7.376912219 | G15: 6.668438666 | H15: 6.438871267
B17: Small business tariffs ($ nominal)
B18: Item | C18: Units | D18: Fixed charge | E18: Block 1 | F18: Block 2 | G18: Block 3 | H18: Block 4
B19: Blocks | C19: GJ/year | E19: 15 | F19: 176.4 | G19: 720 | H19: ∞
B20: Annual (excl. GST)
B21: FY21 | C21: $/GJ/year | D21: 71.22 | E21: 12.016 | F21: 6.546 | G21: 5.933 | H21: 5.722
B22: FY22 | C22: $/GJ/year | D22: 73.66 | E22: 12.36 | F22: 6.716 | G22: 6.071 | H22: 5.862
B23: FY23 | C23: $/GJ/year | D23: 75.40891577 | E23: 12.65346455 | F23: 6.875458571 | G23: 6.21514428 | H23: 6.001181975
B24: FY24 | C24: $/GJ/year | D24: 77.1993562 | E24: 12.95389686 | F24: 7.03870318 | G24: 6.36271099 | H24: 6.143668559
B25: FY25 | C25: $/GJ/year | D25: 79.03230722 | E25: 13.26146236 | F25: 7.205823721 | G25: 6.513781389 | H25: 6.289538215
B26: FY26 | C26: $/GJ/year | D26: 80.90877815 | E26: 13.57633041 | F26: 7.376912219 | G26: 6.668438666 | H26: 6.438871267

Sheet Data|PTRM Revenues
B2: =HYPERLINK("#'"&RIGHT(CELL("filename",Home!A1),LEN(CELL("filename",Home!A1))-FIND("]",CELL("filename",Home!A1)))&"'!A1","Click to go to """&RIGHT(CELL("filename",Home!A1),LEN(CELL("filename",Home!A1))-FIND("]",CELL("filename",Home!A1)))&"""") -> Click to go to "Home"
B3: =ModelName -> Evoenergy revised proposal gas network | customer impacts model
B4: =HYPERLINK("#'"&RIGHT(CELL("filename",A3),LEN(CELL("filename",A3))-FIND("]",CELL("filename",A3)))&"'!A1",RIGHT(CELL("filename",A3),LEN(CELL("filename",A3))-FIND("]",CELL("filename",A3)))) -> Data|PTRM Revenues
B6: Categories | C6: Tariffs
B7: Tariff Name | C7: Units | D7: FY21 | E7: FY22 | F7: FY23 | G7: FY24 | H7: FY25 | I7: FY26
B8: CPI | C8: % | D8: 0 | E8: 0.02374308679 | F8: 0.02374308679 | G8: 0.02374308679 | H8: 0.02374308679 | I8: 0.02374308679
B9: X-factors | C9: % | D9: 0 | E9: -0.0005351644214 | F9: 0 | G9: 0 | H9: 0 | I9: 0
